bitfinex/quotes_SOLUSD_20250429
["timestamp","ask_amount","ask_price","bid_price","bid_amount"]
[1745919472523,17.76548266,149.02,149.01,0.202032]
[1745919473018,24.47599131,149.02,149.01,0.202032]
[1745919473915,8.39871469,149.13,149.02,18.64964886]
[1745919474113,6.73573388,149.13,149.03,13.56]
[1745919474422,17.76548266,149.08,149.04,17.76548266]
[1745919474915,6.73573388,149.13,149.03,13.56]
[1745919475120,17.76548266,149.07,149.04,6.70960815]
[1745919478011,17.76548266,149.06,149.04,6.70960815]
[1745919478204,17.76548266,149.05,149.04,6.70960815]
[1745919478510,24.47241808,149.1,149.04,6.70960815]
[1745919478511,17.76548266,149.07,149.04,6.70960815]
[1745919480320,17.76548266,149.06,149.04,6.70960815]
[1745919480817,17.76548266,149.05,149.04,6.70960815]
[1745919481006,17.76548266,149.06,149.04,6.70960815]
[1745919481525,17.76548266,149.07,149.04,6.70960815]
[1745919483038,82.9,149.1,149.04,6.70960815]
[1745919483320,17.76548266,149.08,149.04,24.47509081]
[1745919483921,17.76548266,149.12,149.07,17.76548266]
[1745919484118,17.76548266,149.12,149.09,6.70735797]
[1745919484303,0.03,149.13,149.09,24.47284063]
[1745919484626,17.76548266,149.12,149.09,6.70735797]
[1745919484798,17.76548266,149.11,149.09,6.70735797]
[1745919486613,17.76548266,149.12,149.09,6.70735797]
[1745919487620,17.76548266,149.11,149.08,13.56]
[1745919487926,6.73562214,149.13,149.08,13.56]
[1745919487927,17.76548266,149.09,149.08,13.56]
[1745919488108,17.76548266,149.1,149.08,13.56]
[1745919489511,17.76548266,149.1,149.08,20.26777771]
[1745919490925,17.76548266,149.1,149.08,13.56]
[1745919491229,17.76548266,149.09,149.04,39.56]
[1745919491527,17.76548266,149.07,149.04,39.56]
[1745919491843,6.70670533,149.11,149.04,57.32548266]
[1745919492133,17.76548266,149.08,149.05,6.70895619]
[1745919494945,17.76548266,149.06,149.04,13.56]
[1745919495129,17.76548266,149.05,149.04,13.56]
[1745919497431,17.76548266,149.05,149.04,20.26960815]
[1745919499134,17.76548266,149.05,149.04,13.56]
[1745919503564,11.10073776,149.05,149.04,13.56]
[1745919503847,11.10073776,149.05,149.04,20.26960815]
[1745919504330,11.10073776,149.05,149.04,13.56]
[1745919506061,11.10073776,149.05,149.01,0.202032]
[1745919506248,11.10073776,149.02,149.01,0.202032]
[1745919506421,82.9,149.05,149.01,0.202032]
[1745919506618,11.10073776,149.03,149.01,0.202032]
[1745919507955,11.10073776,149.03,149.01,6.91295625]
[1745919511656,11.10073776,149.05,149.01,18.01369401]
[1745919511839,82.9,149.07,149.02,11.10073776]
[1745919512037,11.10073776,149.06,149.02,11.10073776]
[1745919512534,11.10073776,149.06,149.03,6.71005837]
[1745919512861,11.10073776,149.05,149.03,6.71005837]
[1745919513057,94.00073776,149.1,149.03,17.81079613]
[1745919513431,11.10073776,149.08,149.04,11.10073776]
[1745919514347,11.10073776,149.08,149.05,11.10073776]
[1745919514541,11.10073776,149.08,149.05,6.709158]
[1745919514956,82.9,149.1,149.04,20.26944567]
[1745919514957,11.10073776,149.07,149.04,20.26944567]
[1745919515164,11.10073776,149.05,149.04,20.26944567]
[1745919515470,11.10073776,149.06,149.04,20.26944567]
[1745919516447,11.10073776,149.07,149.04,20.26944567]
[1745919517448,11.10073776,149.08,149.04,31.37018343]
[1745919517649,82.9,149.1,149.05,11.10073776]
[1745919517875,11.10073776,149.09,149.05,11.10073776]
[1745919518250,11.10073776,149.1,149.06,11.10073776]
[1745919518555,0.03,149.11,149.07,11.10073776]
[1745919518864,0.03,149.11,149.08,11.10073776]
[1745919519179,0.03,149.11,149.09,11.10073776]
[1745919519360,0.03,149.11,149.09,24.66073776]
[1745919519561,0.03,149.11,149.1,6.70690811]
[1745919522000,0.03,149.11,149.1,24.44890277]
[1745919526111,0.03,149.11,149.09,20.26717681]
[1745919531477,0.03,149.11,149.09,38.00917147]
[1745919532401,0.03,149.11,149.1,17.74199466]
[1745919532564,0.03,149.11,149.1,36.39164352]
[1745919534499,0.03,149.11,149.1,43.09855163]
[1745919535785,17.77199466,149.11,149.09,20.26714803]
[1745919536374,17.77199466,149.11,149.09,13.56]
[1745919537798,17.74199466,149.1,149.09,13.56]
[1745919539476,11.12234855,149.11,149.09,20.26735797]
[1745919541112,11.09234855,149.1,149.09,20.26735797]
[1745919541801,11.12234855,149.11,149.09,20.26735797]
[1745919543113,11.09234855,149.1,149.09,13.56]
[1745919543700,0.03,149.11,149.09,20.26735797]
[1745919544004,11.12234855,149.11,149.09,20.26735797]
[1745919546909,0.03,149.11,149.09,20.26735797]
[1745919547097,0.03,149.11,149.09,31.35970652]
[1745919547404,0.03,149.11,149.09,20.26735797]
[1745919547607,11.12234855,149.11,149.09,13.56]
[1745919547904,0.03,149.11,149.09,20.26732998]
[1745919548090,11.12234855,149.11,149.09,20.26732998]
[1745919548291,11.12234855,149.11,149.09,6.70732998]
[1745919549205,0.03,149.11,149.09,6.70732998]
[1745919551907,0.03,149.11,149.08,6.70780788]
[1745919554701,0.03,149.11,149.08,17.80015643]
[1745919557328,0.03,149.11,149.1,11.09234855]
[1745919558528,0.03,149.11,149.1,17.79925666]
[1745919561629,0.03,149.11,149.1,36.44890552]
[1745919563334,0.03,149.13,149.12,26.0]
[1745919563529,0.03,149.13,149.12,131.53234855]
[1745919563932,1e-08,149.13,149.12,158.22867659]
[1745919564235,1e-08,149.13,149.12,156.88800599]
[1745919573138,1e-08,149.13,149.12,20.24600858]
[1745919574540,1e-08,149.13,149.12,31.33835713]
[1745919582932,1e-08,149.13,149.12,49.98800599]
[1745919583741,1e-08,149.13,149.12,38.89565744]
[1745919583941,1e-08,149.13,149.12,49.98800599]
[1745919598464,1e-08,149.13,149.12,20.24600858]
[1745919598660,1e-08,149.13,149.12,31.33835713]
[1745919598865,1e-08,149.13,149.12,20.24600858]
[1745919599166,1e-08,149.13,149.12,31.33835713]
[1745919600661,1e-08,149.13,149.12,130.88800599]
[1745919601365,1e-08,149.13,149.12,156.88800599]
[1745919602666,1e-08,149.13,149.12,20.24600858]
[1745919603177,11.09234856,149.13,149.12,13.54]
[1745919603381,1e-08,149.13,149.12,20.24600858]
[1745919603701,1e-08,149.13,149.12,17.79835713]
[1745919604082,1e-08,149.13,149.12,36.44800599]
[1745919604248,1e-08,149.13,149.12,62.44800599]
[1745919604570,1e-08,149.13,149.12,143.34800599]
[1745919604740,1e-08,149.13,149.12,117.34800599]
[1745919610888,0.03,149.17,149.16,40.83434596]
[1745919610889,1e-08,149.17,149.16,40.83434596]
[1745919611090,0.03,149.19,149.18,26.0]
[1745919611264,1e-08,149.2,149.19,18.64964886]
[1745919611471,1e-08,149.2,149.19,110.64199741]
[1745919612264,1e-08,149.2,149.19,117.34485953]
[1745919614477,1e-08,149.2,149.19,87.60286212]
[1745919614669,1e-08,149.2,149.19,138.21521067]
[1745919617195,1e-08,149.2,149.19,105.51234855]
[1745919617373,1e-08,149.2,149.19,31.31521067]
[1745919617968,1e-08,149.2,149.19,20.22286212]
[1745919618208,1e-08,149.2,149.19,31.31521067]
[1745919618594,1e-08,149.2,149.19,13.52]
[1745919619473,1e-08,149.2,149.19,20.22286212]
[1745919620900,11.09234856,149.2,149.19,13.52]
[1745919621272,1e-08,149.2,149.19,13.52]
[1745919621473,1e-08,149.2,149.19,31.31521067]
[1745919622290,1e-08,149.2,149.19,75.96485953]
[1745919622489,1e-08,149.2,149.19,158.0345482]
[1745919622804,1e-08,149.2,149.19,156.86485953]
[1745919625505,1e-08,149.23,149.22,11.09234855]
[1745919625792,0.03,149.25,149.24,26.0]
[1745919625998,0.03,149.25,149.24,50.61234855]
[1745919626409,0.01220283,149.26,149.24,57.312965]
[1745919626577,0.01220283,149.26,149.25,11.09234855]
[1745919627581,0.01220283,149.26,149.24,46.22061645]
[1745919627907,0.01220283,149.26,149.25,11.09234855]
[1745919628499,0.01220283,149.26,149.25,17.79251605]
[1745919632401,0.01220283,149.26,149.24,24.61234855]
[1745919632602,0.01220283,149.26,149.24,20.22051669]
[1745919632603,11.10455138,149.26,149.24,20.22051669]
[1745919633114,11.10455138,149.26,149.24,13.52]
[1745919633810,11.10455138,149.26,149.24,20.22060909]
[1745919634408,0.01220283,149.26,149.24,20.22060909]
[1745919634613,0.01220283,149.26,149.24,31.31295764]
[1745919634910,0.01220283,149.26,149.25,11.09234855]
[1745919635906,0.01220283,149.26,149.25,17.79251605]
[1745919637408,0.01220283,149.26,149.25,36.44216491]
[1745919641617,12.40122828,149.31,149.25,53.19258367]
[1745919641909,12.40122828,149.31,149.27,11.09234855]
[1745919643616,11.09234855,149.29,149.25,17.79251605]
[1745919644112,11.09234855,149.3,149.26,11.09234855]
[1745919645116,11.09234855,149.3,149.27,6.69926977]
[1745919645285,11.09234855,149.29,149.27,6.69926977]
[1745919646593,11.09234855,149.3,149.27,6.69926977]
[1745919646795,1.30887973,149.31,149.27,6.69926977]
[1745919647116,11.09234855,149.3,149.27,6.69926977]
[1745919649532,1.30887973,149.31,149.28,11.09234855]
[1745919649892,12.40122828,149.31,149.27,17.79161832]
[1745919651731,1.30887973,149.31,149.28,11.09234855]
[1745919652299,0.03,149.32,149.28,11.09234855]
[1745919653526,0.03,149.32,149.29,6.69837229]
[1745919654729,11.12234855,149.32,149.29,6.69837229]
[1745919655530,11.12234855,149.32,149.28,11.09234855]
[1745919655940,11.09234855,149.31,149.27,27.84052299]
[1745919656107,11.09234855,149.3,149.26,17.79206716]
[1745919657419,11.09234855,149.28,149.26,6.69971861]
[1745919658207,11.09234855,149.29,149.26,6.69971861]
[1745919658407,11.09234855,149.28,149.26,6.69971861]
[1745919658624,11.09234855,149.29,149.26,6.69971861]
[1745919663118,11.09234855,149.3,149.26,17.79206716]
[1745919663319,11.09234855,149.31,149.27,11.09234855]
[1745919664437,11.09234855,149.31,149.28,6.698821]
[1745919666347,11.09234855,149.3,149.28,6.698821]
[1745919667343,11.09234855,149.31,149.28,6.698821]
[1745919669540,11.09234855,149.3,149.28,6.698821]
[1745919670245,11.09234855,149.31,149.28,6.698821]
[1745919676167,11.09234855,149.29,149.27,6.69905095]
[1745919676456,11.09234855,149.28,149.26,13.5]
[1745919676955,11.09234855,149.28,149.26,20.19966025]
[1745919677454,11.09234855,149.28,149.26,13.5]
[1745919677644,11.09234855,149.27,149.26,13.5]
[1745919677958,11.09234855,149.27,149.24,6.70042108]
[1745919678149,11.09234855,149.26,149.24,6.70042108]
[1745919678347,11.09234855,149.27,149.24,6.70042108]
[1745919678746,11.09234855,149.28,149.24,17.79276963]
[1745919679231,11.09234855,149.29,149.25,11.09234855]
[1745919680057,11.09234855,149.29,149.24,17.79276963]
[1745919681871,11.09234855,149.28,149.24,17.79276963]
[1745919686056,11.09234855,149.28,149.24,6.70042108]
[1745919687870,11.09234855,149.27,149.24,6.70042108]
[1745919688054,11.09234855,149.26,149.24,6.70042108]
[1745919688971,11.09234855,149.27,149.24,6.70042108]
[1745919689357,11.09234855,149.28,149.24,17.79276963]
[1745919691881,11.09234855,149.28,149.24,6.70042108]
[1745919692053,11.09234855,149.27,149.24,6.70042108]
[1745919692455,11.09234855,149.26,149.24,6.70042108]
[1745919694872,11.09234855,149.27,149.24,6.70042108]
[1745919700579,1.564,149.3,149.24,6.70042108]
[1745919700774,11.09234855,149.28,149.24,17.79276963]
[1745919701174,11.09234855,149.28,149.24,34.54431077]
[1745919702474,1.564,149.3,149.24,23.45196222]
[1745919702681,11.09234855,149.28,149.24,23.45196222]
[1745919702986,11.09234855,149.27,149.24,6.70042108]
[1745919703163,11.09234855,149.26,149.24,6.70042108]
[1745919705694,11.09234855,149.27,149.24,6.70042108]
[1745919705863,11.09234855,149.28,149.24,6.70042108]
[1745919706264,11.09234855,149.28,149.25,13.5]
[1745919707186,11.09234855,149.27,149.25,13.5]
[1745919707860,11.09234855,149.27,149.26,6.69971861]
[1745919708760,1.564,149.3,149.26,6.69971861]
[1745919708959,11.09234855,149.29,149.26,6.69971861]
[1745919713184,11.09234855,149.27,149.25,20.19997054]
[1745919713388,11.09234855,149.26,149.25,20.19997054]
[1745919713981,11.09234855,149.27,149.25,20.19997054]
[1745919717398,11.09234855,149.29,149.25,20.19997054]
[1745919717692,82.9,149.3,149.25,31.29231909]
[1745919717897,11.09234855,149.29,149.25,31.29231909]
[1745919718798,11.09234855,149.28,149.25,20.19997054]
[1745919718981,11.09234855,149.27,149.25,20.19997054]
[1745919720481,11.09234855,149.26,149.25,6.69997054]
[1745919720902,11.09234855,149.27,149.25,6.69997054]
[1745919721079,11.09234855,149.28,149.25,6.69997054]
[1745919722716,6.69761217,149.31,149.25,6.69997054]
[1745919722902,11.09234855,149.29,149.25,6.69997054]
[1745919724698,11.09234855,149.28,149.25,6.69997054]
[1745919725201,11.09234855,149.27,149.25,6.69997054]
[1745919725907,11.09234855,149.28,149.25,6.69997054]
[1745919727006,11.09234855,149.28,149.24,6.70061645]
[1745919727211,11.09234855,149.27,149.24,6.70061645]
[1745919733512,7.08469311,149.26,149.24,6.70061645]
[1745919733833,7.08469311,149.26,149.23,20.20091437]
[1745919734321,7.08469311,149.24,149.23,20.20091437]
[1745919734692,7.08469311,149.25,149.23,20.20091437]
[1745919736004,14.61207553,149.29,149.23,20.20091437]
[1745919736207,7.08469311,149.27,149.23,20.20091437]
[1745919736409,1.6483,149.29,149.25,7.08469311]
[1745919736608,7.08469311,149.28,149.24,7.08469311]
[1745919737113,7.08469311,149.27,149.23,70.03827115]
[1745919739511,11.06764441,149.27,149.23,74.02122245]
[1745919740832,0.03,149.32,149.26,37.06764441]
[1745919741003,0.03,149.32,149.29,37.06764441]
[1745919741210,0.03,149.32,149.3,11.06764441]
[1745919741534,0.03,149.32,149.29,37.06764441]
[1745919741704,0.03,149.32,149.3,6.69792364]
[1745919742628,11.06764441,149.31,149.29,6.69830286]
[1745919743531,11.06764441,149.3,149.29,6.69830286]
[1745919743847,11.06764441,149.3,149.28,20.19863441]
[1745919744928,11.06764441,149.29,149.28,13.5]
[1745919745226,11.06764441,149.29,149.25,6.70000476]
[1745919745431,11.06764441,149.26,149.25,6.70000476]
[1745919745802,11.06764441,149.26,149.24,20.20047949]
[1745919746007,11.06764441,149.25,149.24,13.5]
[1745919747734,11.06764441,149.25,149.24,20.20061645]
[1745919749135,11.06764441,149.25,149.22,6.70151454]
[1745919751835,11.06764441,149.24,149.22,6.70151454]
[1745919754337,6.69850724,149.29,149.22,6.70151454]
[1745919754637,11.06764441,149.25,149.22,6.70151454]
[1745919756048,11.06764441,149.24,149.22,6.70151454]
[1745919756344,11.06764441,149.23,149.21,20.26484909]
[1745919756541,11.06764441,149.22,149.21,20.26484909]
[1745919756745,11.06764441,149.22,149.21,13.563]
[1745919756920,11.06764441,149.22,149.21,0.063]
[1745919761532,18.61089624,149.22,149.21,0.063]
[1745919766942,103.08729624,149.22,149.21,0.063]
[1745919767330,103.08729624,149.22,149.19,0.063]
[1745919767533,11.06764441,149.2,149.19,0.063]
[1745919767747,22.97702611,149.2,149.18,0.063]
[1745919767946,11.06764441,149.19,149.18,0.063]
[1745919769149,17.77050653,149.19,149.18,0.063]
[1745919775864,28.83815094,149.19,149.18,0.063]
[1745919777539,17.77050653,149.19,149.18,0.063]
[1745919779056,28.83815094,149.19,149.18,0.063]
[1745919779850,29.67988823,149.19,149.18,0.063]
[1745919780766,18.64964886,149.18,149.13,0.063]
[1745919780965,24.49782611,149.17,149.13,0.063]
[1745919781139,11.06764441,149.14,149.12,0.063]
[1745919781346,94.8093817,149.13,149.12,0.063]
[1745919781960,101.5149406,149.13,149.12,0.063]
[1745919782163,101.5149406,149.13,149.11,0.063]
[1745919782164,29.68258501,149.13,149.11,0.063]
[1745919782345,105.03528882,149.12,149.1,0.063]
[1745919782549,22.97702611,149.11,149.1,0.063]
[1745919784660,29.68348442,149.11,149.1,0.063]
[1745919788177,22.13528882,149.1,149.09,0.063]
[1745919790188,28.84219693,149.1,149.09,0.063]
[1745919790490,17.77455252,149.1,149.09,0.063]
[1745919790649,11.06764441,149.1,149.09,0.063]
[1745919791481,0.84173729,149.12,149.09,0.063]
[1745919791789,11.06764441,149.11,149.09,0.063]
[1745919791957,11.06764441,149.13,149.1,11.06764441]
[1745919792152,11.06764441,149.13,149.11,6.70645831]
[1745919792666,11.06764441,149.12,149.09,1.6476]
[1745919792857,11.06764441,149.1,149.09,0.063]
[1745919794074,11.06764441,149.12,149.09,6.77035797]
[1745919794271,93.96764441,149.13,149.09,11.13064441]
[1745919794575,11.06764441,149.13,149.09,11.13064441]
[1745919795169,11.06764441,149.15,149.11,11.06764441]
[1745919795382,11.06764441,149.15,149.11,12.60524441]
[1745919796766,11.06764441,149.13,149.11,8.2438699]
[1745919798479,11.06764441,149.12,149.1,6.70679981]
[1745919799285,11.06764441,149.12,149.09,6.77035797]
[1745919799960,11.06764441,149.13,149.09,17.83800238]
[1745919800166,11.06764441,149.14,149.1,11.06764441]
[1745919800376,11.06764441,149.14,149.09,6.77035797]
[1745919800377,11.06764441,149.15,149.11,11.06764441]
[1745919800676,11.06764441,149.15,149.11,24.56764441]
[1745919800875,11.06764441,149.16,149.12,17.37414441]
[1745919801481,11.06764441,149.16,149.13,6.7055589]
[1745919801967,82.9,149.18,149.13,19.31610331]
[1745919801968,11.06764441,149.17,149.13,19.31610331]
[1745919802161,11.06764441,149.16,149.13,8.2484589]
[1745919802366,82.9,149.18,149.13,1.5429]
[1745919802367,11.06764441,149.15,149.13,1.5429]
[1745919803195,11.06764441,149.15,149.12,13.01240726]
[1745919806670,11.06764441,149.13,149.11,13.5]
[1745919806874,11.06764441,149.12,149.11,13.5]
[1745919807089,11.06764441,149.12,149.09,8.31296984]
[1745919809201,11.06764441,149.1,149.09,0.063]
[1745919813301,17.77455252,149.1,149.09,0.063]
[1745919813974,28.84219693,149.1,149.09,0.063]
[1745919814383,29.68393422,149.1,149.09,0.063]
[1745919816515,18.61628981,149.1,149.09,0.063]
[1745919816689,17.77455252,149.1,149.09,0.063]
[1745919817494,28.84219693,149.1,149.09,0.063]
[1745919818111,29.68393422,149.1,149.09,0.063]
[1745919819531,43.07269196,149.1,149.09,0.063]
[1745919821819,25.31066868,149.1,149.09,0.063]
[1745919822002,17.76202328,149.1,149.09,0.063]
[1745919822401,18.60376057,149.1,149.09,0.063]
[1745919822927,24.46893139,149.1,149.09,0.063]
[1745919824018,42.23095467,149.1,149.09,0.063]
[1745919824689,43.07269196,149.1,149.09,0.063]
[1745919825624,61.72234082,149.1,149.09,0.063]
[1745919828207,19.39222328,149.09,149.07,0.063]
[1745919828413,18.60376057,149.08,149.07,0.063]
[1745919829423,25.31156845,149.08,149.07,0.063]
[1745919830409,60.73073703,149.08,149.04,0.063]
[1745919830630,17.76202328,149.05,149.04,0.063]
[1745919831911,24.47118128,149.05,149.04,0.063]
[1745919833949,42.23320456,149.05,149.04,0.063]
[1745919834117,18.64964886,149.04,149.01,0.202032]
[1745919834307,54.17369542,149.04,149.01,0.202032]
[1745919834508,35.52404656,149.04,149.01,0.202032]
[1745919834714,17.76202328,149.02,149.01,0.202032]
[1745919836037,24.47253193,149.02,149.01,0.202032]
[1745919839910,17.8226509,149.02,149.01,0.202032]
[1745919852252,11.11214225,149.02,149.01,0.202032]
[1745919852751,17.8226509,149.02,149.01,0.202032]
[1745919859364,11.11214225,149.02,149.01,0.202032]
[1745919859562,11.11214225,149.03,149.01,0.202032]
[1745919859861,11.11214225,149.04,149.01,0.202032]
[1745919860046,13.5,149.06,149.01,6.91294891]
[1745919860047,20.20890545,149.06,149.01,6.91294891]
[1745919860234,11.11214225,149.03,149.01,6.91294891]
[1745919862660,94.01214225,149.04,149.01,6.91294891]
[1745919863238,11.11214225,149.04,149.01,6.91294891]
[1745919864166,6.70882544,149.06,149.01,6.91294891]
[1745919864360,11.11214225,149.05,149.01,18.02509116]
[1745919864540,11.11214225,149.04,149.01,6.91294891]
[1745919867973,11.11214225,149.03,149.01,0.202032]
[1745919868368,11.11214225,149.03,149.01,6.91296538]
[1745919869956,89.6087079,149.06,149.01,0.202032]
[1745919869957,11.11214225,149.02,149.01,0.202032]
[1745919870553,11.11214225,149.03,149.01,0.202032]
[1745919874174,11.11214225,149.02,149.01,0.202032]
[1745919877979,17.8226509,149.02,149.01,0.202032]
[1745919878373,11.11214225,149.02,149.01,0.202032]
[1745919886381,94.01214225,149.03,149.01,6.91299099]
[1745919888183,82.9,149.03,149.01,6.91299099]
[1745919888383,94.01214225,149.03,149.01,6.91299099]
[1745919888563,11.11214225,149.03,149.01,6.91299099]
[1745919889789,11.11214225,149.03,149.01,0.202032]
[1745919890256,11.11214225,149.02,149.01,0.202032]
[1745919891986,7.55098203,149.05,149.01,0.202032]
[1745919892163,11.11214225,149.02,149.01,0.202032]
[1745919899906,6.7101596,149.03,149.01,0.202032]
[1745919900080,11.11214225,149.02,149.01,0.202032]
[1745919900609,11.11214225,149.03,149.01,0.202032]
[1745919900822,94.01214225,149.06,149.01,18.02513324]
[1745919901480,11.11214225,149.05,149.01,18.02513324]
[1745919903506,11.11214225,149.05,149.01,6.91299099]
[1745919904427,82.9,149.06,149.02,11.11214225]
[1745919904706,11.11214225,149.05,149.01,18.02513324]
[1745919906197,11.11214225,149.03,149.01,6.91299099]
[1745919907606,89.60881704,149.06,149.01,6.91299099]
[1745919907607,82.9,149.06,149.01,6.91299099]
[1745919907904,11.11214225,149.05,149.01,18.02513324]
[1745919908111,11.11214225,149.04,149.01,6.91299099]
[1745919913511,7.10567828,149.04,149.01,6.91299099]
[1745919914007,7.10567828,149.05,149.01,14.01866927]
[1745919917615,82.9,149.06,149.02,7.10567828]
[1745919917812,7.10567828,149.08,149.03,7.10567828]
[1745919918316,89.63757048,149.09,149.05,7.10567828]
[1745919918317,82.93,149.09,149.05,7.10567828]
[1745919919202,90.03567828,149.09,149.05,7.10567828]
[1745919919402,7.10567828,149.08,149.05,6.70898963]
[1745919921043,7.10567828,149.07,149.03,6.71005837]
[1745919921326,7.10567828,149.06,149.03,6.71005837]
[1745919923400,7.10567828,149.05,149.03,6.71005837]
[1745919923703,11.10129549,149.05,149.03,6.71005837]
[1745919924013,11.10129549,149.06,149.03,6.71005837]
[1745919924725,11.10129549,149.06,149.02,17.81180414]
[1745919928838,11.10129549,149.04,149.01,6.9128595]
[1745919929014,11.10129549,149.03,149.01,6.9128595]
[1745919929415,11.10129549,149.04,149.01,6.9128595]
[1745919931919,11.10129549,149.05,149.01,18.01415499]
[1745919932123,11.10129549,149.06,149.02,11.10129549]
[1745919932342,11.10129549,149.07,149.03,11.10129549]
[1745919932538,89.63756336,149.09,149.03,11.10129549]
[1745919932740,94.03129549,149.09,149.05,11.10129549]
[1745919933820,94.03129549,149.09,149.06,6.7087079]
[1745919934119,11.13129549,149.09,149.06,6.7087079]
[1745919934323,11.10129549,149.08,149.06,6.7087079]
[1745919934912,11.10129549,149.07,149.01,0.202032]
[1745919935244,11.10129549,149.06,149.02,17.81180414]
[1745919935922,0.03,149.09,149.04,11.10129549]
[1745919936238,11.10129549,149.08,149.04,11.10129549]
[1745919937237,11.13129549,149.09,149.05,11.10129549]
[1745919937846,11.10129549,149.06,149.02,87.61050865]
[1745919938055,11.10129549,149.05,149.02,6.71050865]
[1745919943334,17.81180414,149.02,149.01,0.202032]
[1745919944453,11.10129549,149.02,149.01,0.202032]
[1745919947448,17.81180414,149.02,149.01,0.202032]
[1745919949637,18.65354143,149.02,149.01,0.202032]
[1745919951164,101.55354143,149.02,149.01,0.202032]
[1745919952954,109.59754143,149.02,149.0,0.03]
[1745919953158,11.10129549,149.01,149.0,0.03]
[1745919953365,17.81225448,149.01,149.0,0.03]
[1745919970875,17.81225448,149.01,148.99,0.063]
[1745919971188,11.94303278,149.0,148.99,0.063]
[1745919972871,18.65444217,149.0,148.99,0.063]
[1745919984400,11.10129549,149.0,148.99,0.063]
[1745919986607,17.81270488,149.0,148.99,0.063]
[1745919988400,18.65444217,149.0,148.99,0.063]
[1745919990703,18.65444217,149.0,148.98,0.063]
[1745919990879,11.10129549,148.99,148.98,0.063]
[1745919991291,94.00129549,148.99,148.98,0.063]
[1745919992601,100.71315534,148.99,148.98,0.063]
[1745920002930,28.91445083,148.99,148.98,0.063]
[1745920003305,28.91445083,148.99,148.97,0.063]
[1745920003520,23.04432827,148.98,148.95,0.063]
[1745920003825,22.20259098,148.96,148.95,0.063]
[1745920004023,23.04432827,148.96,148.95,0.063]
[1745920005022,29.75753987,148.96,148.95,0.063]
[1745920005526,17.81450709,148.96,148.95,0.063]
[1745920005709,11.10129549,148.96,148.95,0.063]
[1745920016433,11.10129549,148.96,148.95,0.063]
[1745920016730,17.81450709,148.96,148.95,0.063]
[1745920016931,11.10129549,148.96,148.95,0.063]
[1745920018720,17.81450709,148.96,148.95,0.063]
[1745920019544,11.10129549,148.96,148.95,0.063]
[1745920020443,17.81450709,148.96,148.95,0.063]
[1745920021545,28.91580258,148.96,148.95,0.063]
[1745920022741,17.81450709,148.96,148.95,0.063]
[1745920022909,11.10129549,148.96,148.95,0.063]
[1745920023113,83.74173729,148.99,148.95,0.063]
[1745920023114,82.9,148.99,148.95,0.063]
[1745920023543,94.00129549,148.99,148.95,11.16429549]
[1745920025042,94.00129549,148.99,148.95,17.87760328]
[1745920025444,11.10129549,148.99,148.95,17.87760328]
[1745920025839,11.10129549,148.98,148.95,6.77630779]
[1745920026346,11.10129549,148.97,148.95,6.77630779]
[1745920026647,11.10129549,148.96,148.95,0.063]
[1745920030035,6.7125161,148.98,148.95,0.063]
[1745920030345,11.10129549,148.97,148.95,0.063]
[1745920031128,11.10129549,148.96,148.95,0.063]
[1745920042440,17.81450709,148.96,148.95,0.063]
[1745920042622,28.91580258,148.96,148.95,0.063]
[1745920048730,54.91580258,148.96,148.94,0.063]
[1745920048934,18.65669508,148.95,148.94,0.063]
[1745920049260,20.29749508,148.95,148.92,0.063]
[1745920049460,11.10129549,148.93,148.92,0.063]
[1745920051068,17.81585937,148.93,148.92,0.063]
[1745920070078,11.10129549,148.93,148.92,0.063]
[1745920070885,94.00129549,148.94,148.92,0.063]
[1745920071363,11.10129549,148.93,148.92,0.063]
[1745920071548,7.11626247,148.93,148.92,0.063]
[1745920072145,13.83082635,148.93,148.92,0.063]
[1745920079182,14.67256364,148.93,148.92,0.063]
[1745920079482,82.9,148.92,148.89,0.063]
[1745920079689,35.58131235,148.9,148.89,0.063]
[1745920080001,42.29722907,148.9,148.89,0.063]
[1745920080172,59.08702087,148.9,148.86,0.063]
[1745920080489,7.11626247,148.87,148.86,0.063]
[1745920081494,11.13040785,148.87,148.86,0.063]
[1745920084893,82.9,148.89,148.86,0.063]
[1745920085103,11.13040785,148.89,148.86,0.063]
[1745920085787,82.9,148.94,148.87,11.13040785]
[1745920086101,11.13040785,148.89,148.86,7.7531]
[1745920086404,11.13040785,148.9,148.86,18.88350785]